[Event "World Junior U20 Girls 2018"]
[Site "Gebze"]
[Date "2018.09.07"]
[Round "3"]
[White "Georgescu, Lena"]
[Black "Tsolakidou, Stavroula"]
[Result "0-1"]
[ECO "B49"]
[WhiteElo "2195"]
[BlackElo "2393"]
[Annotator "NA"]
[PlyCount "78"]
[EventDate "2018.09.05"]
[EventType "swiss"]
[EventCountry "TUR"]
[SourceTitle "playchess.com"]
[Source "ChessBase"]
[SourceQuality "1"]
[TimeControl "40/5400+30:1800+30"]

1. e4 {[%emt 0:00:30]} c5 {[%emt 0:00:30]} 2. Nf3 {[%emt 0:00:30]} e6 {[%emt 0:00:30]} 3. d4 {[%emt 0:00:00]} cxd4 {[%emt 0:00:00]} 4. Nxd4 {[%emt 0:00:00]} Nc6 {[%emt 0:00:00]} 5. Nc3 {[%emt 0:00:00]} Qc7 {[%emt 0:00:00]} 6. Be3 {[%emt 0:00:00]} a6 {[%emt 0:00:00]} 7. a3 {[%emt 0:00:30]} b5 {[%emt 0:09:30]} 8. Nxc6 {[%emt 0:00:30] LiveBook: 53 Games} Qxc6 {[%emt 0:00:30]} 9. Be2 {[%emt 0:00:30]} Bb7 {[%emt 0:01:30] B49: Sicilian: Taimanov: 5 Nc3 Qc7 6 Be3 a6 7 Be2} 10. O-O {[%emt 0:01:30]} Rc8 {[%emt 0:08:30]} 11. Qd2 {[%emt 0:01:30]} (11. Bd4 Qc7 12. Qd3 Nf6 13. f4 Be7 14. Bf3 O-O 15. e5 Ne8 16. f5 Bxf3 17. Rxf3 Qc4 18. Qd2 f6 19. exf6 Nxf6 20. Kh1 a5 21. Bxf6 Bxf6 22. Qxd7 exf5 23. Rxf5 Bxc3 {½-½ (23) Kobalia,M (2599)-Najer,E (2683) Batumi 2018}) 11... Qc7 {[%emt 0:21:30] [#]} 12. Rfd1 $1 {[%emt 0:05:30]} Nf6 {[%emt 0:07:30]} 13. Bf4 {[%emt 0:05:30]} e5 {[%emt 0:05:30]} 14. Bg5 {[%emt 0:01:30]} Nxe4 {[%emt 0:06:30]} 15. Nxe4 {[%emt 0:00:00]} Bxe4 {[%emt 0:00:30]} 16. c4 {[%emt 0:00:00]} Qb7 {[%emt 0:04:30]} 17. cxb5 $146 {[%emt 0:17:30]} ({Predecessor:} 17. Rac1) 17... axb5 {[%emt 0:00:30]} 18. a4 {[%emt 0:23:30]} Rc2 {[%emt 0:08:30]} 19. Qa5 {[%emt 0:06:30]} f6 {[%emt 0:00:00]} 20. Bxb5 {[%emt 0:11:30]} Bc5 {[%emt 0:00:00]} 21. Bh4 {[%emt 0:05:58]} Bd4 {[%emt 0:01:30]} 22. Rac1 {[%emt 0:02:36]} O-O {[%emt 0:05:27]} 23. Rxc2 {[%emt 0:01:24]} Bxc2 {[%emt 0:00:05]} 24. Rc1 {[%emt 0:00:31]} Bf5 {[%emt 0:01:21]} 25. b3 {[%emt 0:02:09]} Be6 {[%emt 0:03:23]} 26. Qc7 {[%emt 0:03:26]} Qe4 {[%emt 0:03:03]} 27. Bg3 {[%emt 0:00:50]} h5 {[%emt 0:03:00]} 28. h4 {[%emt 0:00:53]} g5 {[%emt 0:05:38]} 29. hxg5 {[%emt 0:00:52]} h4 {[%emt 0:00:16]} 30. Bxd7 {[%emt 0:02:21]} Bxd7 {[%emt 0:02:54]} 31. Qxd7 {[%emt 0:00:37]} hxg3 {[%emt 0:00:06]} 32. Qe6+ {[%emt 0:00:51]} Kh8 {[%emt 0:00:04]} 33. Qh3+ {[%emt 0:01:11]} Qh7 {[%emt 0:00:05]} 34. Qxg3 {[%emt 0:00:46]} fxg5 {[%emt 0:00:05]} 35. Rf1 {[%emt 0:00:18]} Qh5 {[%emt 0:00:39]} 36. Qd3 {[%emt 0:01:31]} Kg7 {[%emt 0:00:20]} 37. Qc4 {[%emt 0:00:09]} Qh4 {[%emt 0:00:19]} 38. Qc7+ {[%emt 0:00:54]} Rf7 {[%emt 0:00:30]} 39. Qc2 {[%emt 0:00:00]} g4 {[%emt 0:00:00]} 0-1

[Event "World Junior U20 Girls 2018"]
[Site "Gebze"]
[Date "2018.09.07"]
[Round "3"]
[White "Varshini, V."]
[Black "Kocyigit, Buse Naz"]
[Result "1-0"]
[ECO "B01"]
[WhiteElo "2173"]
[BlackElo "1944"]
[Annotator "NA"]
[PlyCount "85"]
[EventDate "2018.09.05"]
[EventType "swiss"]
[EventCountry "TUR"]
[SourceTitle "playchess.com"]
[Source "ChessBase"]
[SourceQuality "1"]
[TimeControl "40/5400+30:1800+30"]

1. e4 d5 2. exd5 Qxd5 3. Nc3 Qd8 4. d4 Nf6 5. Nf3 Bg4 6. Be2 e6 7. h3 Bxf3 8. Bxf3 c6 9. Bf4 Bd6 $11 10. Qd2 O-O 11. O-O Bxf4 12. Qxf4 Nbd7 13. Rad1 Qa5 14. Rfe1 {[%emt 0:32:00]} Rac8 {[%emt 0:19:00]} 15. a3 {[%emt 0:05:30]} Nd5 {[%emt 0:02:30]} 16. Nxd5 {[%emt 0:01:30]} cxd5 {[%emt 0:00:30]} 17. c3 {[%emt 0:00:00]} b5 {[%emt 0:06:30]} 18. Be2 {[%emt 0:03:00]} Qb6 {[%emt 0:10:30]} 19. Bd3 {[%emt 0:01:30]} a5 {[%emt 0:01:30]} 20. Qh4 {[%emt 0:01:30]} g6 {[%emt 0:01:30]} 21. Qf4 {[%emt 0:03:30]} b4 {[%emt 0:08:30]} 22. cxb4 {[%emt 0:01:30]} axb4 {[%emt 0:01:30]} 23. a4 {[%emt 0:00:30]} Nb8 {[%emt 0:12:30]} 24. h4 {[%emt 0:12:30]} Nc6 {[%emt 0:06:30]} 25. Bb1 {[%emt 0:07:30]} Na5 {[%emt 0:05:30]} 26. h5 {[%emt 0:03:30]} Qc7 {[%emt 0:04:30]} 27. Qh6 {[%emt 0:04:30]} Qe7 {[%emt 0:02:50]} 28. Re3 {[%emt 0:05:30]} Qf6 {[%emt 0:01:14]} 29. Rg3 {[%emt 0:02:34]} Qg7 {[%emt 0:01:42]} 30. Qf4 {[%emt 0:00:20]} Rfd8 {[%emt 0:02:10]} 31. b3 {[%emt 0:07:33]} Rc6 {[%emt 0:02:21]} 32. Qd2 {[%emt 0:05:37]} Qf8 {[%emt 0:02:10]} 33. hxg6 {[%emt 0:02:14]} hxg6 {[%emt 0:00:10]} 34. Bxg6 {[%emt 0:00:25]} fxg6 {[%emt 0:00:39]} 35. Rxg6+ {[%emt 0:00:02]} Kf7 {[%emt 0:03:20]} 36. Qg5 {[%emt 0:00:10]} e5 {[%emt 0:01:24]} 37. Qf5+ {[%emt 0:01:32]} Ke8 {[%emt 0:01:25]} 38. Qxe5+ {[%emt 0:00:53]} Kd7 {[%emt 0:03:33]} 39. Qxd5+ {[%emt 0:00:50]} Rd6 {[%emt 0:00:31]} 40. Rxd6+ {[%emt 0:00:00]} Qxd6 {[%emt 0:00:30]} 41. Qxa5 {[%emt 0:02:20]} Rh8 {[%emt 0:00:31]} 42. Qa7+ {[%emt 0:01:30]} Ke6 {[%emt 0:00:30]} 43. d5+ {[%emt 0:00:30]} 1-0

[Event "World Junior U20 Girls 2018"]
[Site "Gebze"]
[Date "2018.09.07"]
[Round "3"]
[White "Song, Yuxin"]
[Black "Dordzhieva, Dinara"]
[Result "1/2-1/2"]
[ECO "B44"]
[WhiteElo "2156"]
[BlackElo "2318"]
[Annotator "NA"]
[PlyCount "38"]
[EventDate "2018.09.05"]
[EventType "swiss"]
[EventCountry "TUR"]
[SourceTitle "playchess.com"]
[Source "ChessBase"]
[SourceQuality "1"]
[TimeControl "40/5400+30:1800+30"]

1. e4 {[%emt 0:00:30]} c5 {[%emt 0:00:30]} 2. Nf3 {[%emt 0:00:30]} e6 {[%emt 0:00:30]} 3. d4 {[%emt 0:00:00]} cxd4 {[%emt 0:00:00]} 4. Nxd4 {[%emt 0:00:00]} Nf6 {[%emt 0:00:00]} 5. Bd3 {[%emt 0:01:30]} Nc6 {[%emt 0:01:30]} 6. Nxc6 {[%emt 0:01:30]} bxc6 {[%emt 0:00:00]} 7. c4 {[%emt 0:00:30]} d5 {[%emt 0:01:00]} 8. cxd5 {[%emt 0:06:30] LiveBook: 8 Games} cxd5 {[%emt 0:00:30]} 9. Nc3 {[%emt 0:01:30] B44: Sizilianisch (Paulsen/Taimanow-Variante)} dxe4 {[%emt 0:06:30]} 10. Nxe4 {[%emt 0:02:30]} Bb4+ {[%emt 0:00:30]} 11. Nc3 {[%emt 0:07:30]} O-O {[%emt 0:00:00]} 12. O-O {[%emt 0:00:30]} Bb7 {[%emt 0:04:00]} 13. Qb3 {[%emt 0:04:30]} ({Vorgänger:} 13. Qe2 Bxc3 14. bxc3 Qd5 15. f3 Rfd8 16. Bc4 Qc6 {½-½ (28) Aldama Degurnay,D (2141)-Vera Gonzalez Quevedo,R (2495) Matanzas 1992}) 13... Qb6 {[%emt 0:35:30]} 14. Be2 {[%emt 0:03:30]} Nd5 {[%emt 0:04:30]} 15. Nxd5 {[%emt 0:02:30]} Bxd5 {[%emt 0:00:00]} 16. Bc4 {[%emt 0:00:30]} Bb7 {[%emt 0:03:00]} 17. Be2 {[%emt 0:04:30]} Bd5 {[%emt 0:03:30]} 18. Bc4 $11 {[%emt 0:00:30]} Bb7 {[%emt 0:03:30]} 19. Be2 {[%emt 0:01:30]} Bd5 {[%emt 0:00:30]} 1/2-1/2

[Event "World Junior U20 Girls 2018"]
[Site "Gebze"]
[Date "2018.09.07"]
[Round "3"]
[White "Ivana Maria, Furtado"]
[Black "Sieber, Fiona"]
[Result "1-0"]
[ECO "A22"]
[WhiteElo "2144"]
[BlackElo "2277"]
[Annotator "NA"]
[PlyCount "121"]
[EventDate "2018.09.05"]
[EventType "swiss"]
[EventCountry "TUR"]
[SourceTitle "playchess.com"]
[Source "ChessBase"]
[SourceQuality "1"]
[TimeControl "40/5400+30:1800+30"]

1. c4 {[%emt 0:01:30]} Nf6 {[%emt 0:02:30]} 2. Nc3 {[%emt 0:01:30]} e5 {[%emt 0:00:30]} 3. g3 {[%emt 0:00:00]} Bb4 {[%emt 0:01:30]} 4. Bg2 {[%emt 0:01:00]} O-O {[%emt 0:00:30]} 5. Qb3 {[%emt 0:04:30]} Bc5 {[%emt 0:03:30] A22: English Opening: 1...e5 2 Nc3 Nf6} (5... Bxc3 6. Qxc3 Re8 7. d3 Nc6 8. Nf3 e4 9. Nd4 Nxd4 10. Qxd4 exd3 11. e3 d5 12. cxd5 c6 13. O-O Nxd5 {½-½ (24) Timofeev,A (2681)-Zhou,J (2623) Sochi 2009}) 6. e3 {[%emt 0:03:30]} Nc6 {[%emt 0:02:30]} 7. Nge2 {[%emt 0:01:30]} a6 $146 {[%emt 0:06:30]} ({Predecessor:} 7... Nb4 8. Na4 Be7 9. a3 Nc6 10. d4 exd4 11. exd4 d6 12. O-O Na5 13. Qc2 {1-0 (50) Gomes Filho,J (1946)-Pacifico,J (1800) Teresina 2002}) 8. O-O {[%emt 0:01:30]} Re8 {[%emt 0:04:30]} 9. d3 {[%emt 0:06:30]} d6 {[%emt 0:00:30]} 10. a3 {[%emt 0:24:00]} Ba7 {[%emt 0:26:00]} 11. h3 {[%emt 0:04:30]} Rb8 {[%emt 0:20:30]} 12. Qc2 {[%emt 0:00:30]} Ne7 {[%emt 0:00:30]} 13. d4 {[%emt 0:03:30]} exd4 {[%emt 0:01:30]} 14. exd4 {[%emt 0:01:30]} h6 {[%emt 0:06:30]} 15. b4 {[%emt 0:02:30]} b5 {[%emt 0:05:30]} 16. c5 {[%emt 0:03:30]} Bb7 {[%emt 0:00:00]} 17. a4 {[%emt 0:10:30]} Bxg2 {[%emt 0:01:00]} 18. Kxg2 {[%emt 0:00:30]} Nc6 {[%emt 0:04:30]} 19. axb5 {[%emt 0:00:30]} Nxb4 {[%emt 0:00:30]} 20. Qf5 {[%emt 0:04:30]} dxc5 {[%emt 0:08:30]} 21. dxc5 {[%emt 0:00:30]} Qd7 {[%emt 0:08:51]} 22. Qf3 {[%emt 0:08:30]} Bxc5 {[%emt 0:00:32]} 23. bxa6 {[%emt 0:01:30]} Qe6 {[%emt 0:02:45]} 24. Nf4 {[%emt 0:06:30]} Qb6 {[%emt 0:01:09]} 25. Bb2 {[%emt 0:06:30]} Nc2 {[%emt 0:03:22]} 26. Na4 {[%emt 0:03:30]} Qd6 {[%emt 0:08:17]} 27. Rad1 {[%emt 0:04:46]} Bd4 {[%emt 0:01:12]} 28. Bxd4 {[%emt 0:05:53]} Nxd4 {[%emt 0:00:01]} 29. Qc3 {[%emt 0:00:29]} Rb4 {[%emt 0:01:07]} 30. Nc5 {[%emt 0:03:43]} Nd5 {[%emt 0:01:51]} 31. Rxd4 {[%emt 0:02:39]} Rxd4 {[%emt 0:00:05]} 32. Qxd4 {[%emt 0:01:23]} Nxf4+ {[%emt 0:00:30]} 33. Qxf4 {[%emt 0:00:30]} Qxc5 {[%emt 0:00:00]} 34. Rc1 {[%emt 0:00:27]} Qd5+ {[%emt 0:00:34]} 35. Qf3 {[%emt 0:00:13]} Qxf3+ {[%emt 0:00:54]} 36. Kxf3 {[%emt 0:00:04]} Ra8 {[%emt 0:00:00]} 37. Ra1 {[%emt 0:02:26]} Ra7 {[%emt 0:00:56]} 38. Ke4 {[%emt 0:00:12]} Kf8 {[%emt 0:00:00]} 39. Kd5 {[%emt 0:00:25]} Ke7 {[%emt 0:00:06]} 40. Kc6 {[%emt 0:00:00]} h5 {[%emt 0:00:00]} 41. Ra4 {[%emt 0:03:20]} g6 {[%emt 0:06:18]} 42. g4 {[%emt 0:02:30]} hxg4 {[%emt 0:00:30]} 43. hxg4 {[%emt 0:00:30]} Kd8 {[%emt 0:05:30]} 44. g5 {[%emt 0:00:30]} Ke7 {[%emt 0:01:30]} 45. f4 {[%emt 0:09:30]} Kd8 {[%emt 0:00:30]} 46. Kd5 {[%emt 0:01:04]} Kd7 {[%emt 0:03:05]} 47. Ra3 {[%emt 0:00:20]} Ke7 {[%emt 0:03:29]} 48. Ke5 {[%emt 0:04:22]} c6 {[%emt 0:01:21]} 49. Kd4 {[%emt 0:00:43]} Kd6 {[%emt 0:08:21]} 50. Kc4 {[%emt 0:00:29]} Kc7 {[%emt 0:00:52]} 51. Kc5 {[%emt 0:00:14]} Kb8 {[%emt 0:01:33]} 52. Kb6 {[%emt 0:03:56]} Re7 {[%emt 0:01:00]} 53. Rd3 {[%emt 0:01:07]} Re8 $18 {[%emt 0:00:53]} 54. a7+ {[%emt 0:01:52]} Ka8 {[%emt 0:00:00]} 55. Rd7 {[%emt 0:00:17]} Rf8 {[%emt 0:01:12]} 56. Kxc6 {[%emt 0:03:54]} f6 {[%emt 0:00:03]} 57. f5 {[%emt 0:01:40]} gxf5 {[%emt 0:04:33]} 58. g6 {[%emt 0:00:09]} Rg8 {[%emt 0:00:23]} 59. g7 {[%emt 0:01:19]} f4 {[%emt 0:00:01]} 60. Rf7 {[%emt 0:01:33]} f3 {[%emt 0:00:01]} 61. Kb6 {[%emt 0:00:05]} 1-0

[Event "World Junior U20 Girls 2018"]
[Site "Gebze"]
[Date "2018.09.07"]
[Round "3"]
[White "Urh, Zala"]
[Black "Maltsevskaya, Aleksandra"]
[Result "0-1"]
[ECO "A57"]
[WhiteElo "2128"]
[BlackElo "2234"]
[Annotator "NA"]
[PlyCount "62"]
[EventDate "2018.09.05"]
[EventType "swiss"]
[EventCountry "TUR"]
[SourceTitle "playchess.com"]
[Source "ChessBase"]
[SourceQuality "1"]
[TimeControl "40/5400+30:1800+30"]

1. d4 {[%emt 0:02:30]} Nf6 {[%emt 0:00:30]} 2. c4 {[%emt 0:00:30]} c5 {[%emt 0:00:30]} 3. d5 {[%emt 0:00:30]} b5 {[%emt 0:00:00]} 4. cxb5 {[%emt 0:00:00]} a6 {[%emt 0:00:00]} 5. f3 {[%emt 0:00:00]} g6 {[%emt 0:00:30]} 6. e4 {[%emt 0:00:30]} Bg7 {[%emt 0:00:00]} 7. e5 {[%emt 0:02:30] A57: Wolga/Benkö-Gambit} (7. Nc3 O-O 8. bxa6 e6 9. Bc4 exd5 10. Nxd5 Nc6 11. Ne2 Ne5 12. Nxf6+ Qxf6 13. Bd5 Bxa6 14. O-O Rab8 {0-1 (28) Vocaturo,D (2579)-Ivanisevic,I (2638) Dubai 2015}) 7... Ng8 {[%emt 0:05:00]} 8. f4 {[%emt 0:00:00]} Nh6 {[%emt 0:04:30]} 9. Nf3 {[%emt 0:04:00]} O-O {[%emt 0:00:30]} 10. Bc4 {[%emt 0:02:30]} axb5 {[%emt 0:01:30]} 11. Bxb5 {[%emt 0:00:30]} Qb6 {[%emt 0:06:30]} 12. Nc3 {[%emt 0:03:30]} d6 {[%emt 0:01:30]} 13. O-O $146 {[%emt 0:03:30]} ({Vorgänger:} 13. Qe2 Nf5 14. O-O Ba6 15. Bxa6 Nxa6 {0-1 (39) Delalande,T (2071)-Kostiuk,T (2322) Avoine 2013}) 13... Nd7 {[%emt 0:27:30]} 14. Qe2 {[%emt 0:23:00]} Nf5 {[%emt 0:01:30]} 15. Kh1 {[%emt 0:08:30]} Nd4 {[%emt 0:06:30]} 16. Nxd4 {[%emt 0:03:30]} cxd4 {[%emt 0:00:30]} 17. Na4 {[%emt 0:00:00]} Qb8 {[%emt 0:14:30]} 18. e6 {[%emt 0:04:00]} Nf6 {[%emt 0:00:30]} 19. exf7+ {[%emt 0:00:30]} Rxf7 {[%emt 0:01:30]} 20. Qc4 {[%emt 0:02:30]} e6 {[%emt 0:12:30]} 21. Bd2 $19 {[%emt 0:10:30]} exd5 {[%emt 0:03:30]} 22. Qe2 {[%emt 0:01:30]} Bg4 {[%emt 0:00:30]} 23. Qd3 {[%emt 0:00:30]} Bf5 {[%emt 0:00:30]} 24. Qe2 {[%emt 0:00:30]} d3 {[%emt 0:00:00]} 25. Bxd3 {[%emt 0:01:30]} Rxa4 {[%emt 0:04:00]} 26. b3 {[%emt 0:00:30]} Ra8 {[%emt 0:00:30]} 27. Bxf5 {[%emt 0:00:30]} gxf5 {[%emt 0:00:30]} 28. Bc3 {[%emt 0:00:30]} Ne4 {[%emt 0:00:30]} 29. Bxg7 {[%emt 0:00:30]} Rxg7 {[%emt 0:00:30]} 30. Qd3 {[%emt 0:00:30]} Kh8 {[%emt 0:00:30]} 31. Qxd5 {[%emt 0:00:30]} Qa7 {[%emt 0:00:30]} 0-1

[Event "World Junior U20 Girls 2018"]
[Site "Gebze"]
[Date "2018.09.07"]
[Round "3"]
[White "Santeramo, Alessia"]
[Black "Hereklioglu, Sude"]
[Result "1/2-1/2"]
[ECO "B48"]
[WhiteElo "2124"]
[BlackElo "1930"]
[Annotator "NA"]
[PlyCount "109"]
[EventDate "2018.09.05"]
[EventType "swiss"]
[EventCountry "TUR"]
[SourceTitle "playchess.com"]
[Source "ChessBase"]
[SourceQuality "1"]
[TimeControl "40/5400+30:1800+30"]

1. e4 {[%emt 0:00:30]} c5 {[%emt 0:00:30]} 2. Nf3 {[%emt 0:00:30]} e6 {[%emt 0:00:00]} 3. d4 {[%emt 0:00:00]} cxd4 {[%emt 0:00:00]} 4. Nxd4 {[%emt 0:00:00]} Nc6 {[%emt 0:00:30]} 5. Nc3 {[%emt 0:00:00]} Qc7 {[%emt 0:00:30]} 6. Be3 {[%emt 0:00:00]} a6 {[%emt 0:00:30]} 7. Qf3 {[%emt 0:00:30] B48: Sizilianisch (Paulsen-Variante)} Nf6 {[%emt 0:00:30]} 8. O-O-O {[%emt 0:02:30]} d6 {[%emt 0:02:30]} (8... Ne5 9. Qg3 b5 10. a3 Bb7 11. Bxb5 Rc8 12. Ba4 Nxe4 13. Nxe4 Bxe4 14. Bf4 Qc4 15. Bxe5 Qxa4 {1-0 (38) Vachier Lagrave,M (2789)-Anand,V (2776) Karlsruhe/Baden-Baden 2018}) 9. Qg3 {[%emt 0:10:30]} Nxd4 {[%emt 0:05:30]} 10. Bxd4 {[%emt 0:00:30]} e5 {[%emt 0:00:30]} 11. Be3 {[%emt 0:00:30]} Be6 {[%emt 0:01:30]} 12. Bg5 {[%emt 0:47:00]} Nd7 $146 {[%emt 0:26:00]} ({Vorgänger:} 12... Be7 13. Bxf6 Bxf6 14. Nd5 Qc6 {½-½ (36) Nekhaev,A (2520)-Pessoa,F (2520) ICCF email 2016}) 13. Nd5 {[%emt 0:00:30]} Bxd5 {[%emt 0:00:30]} 14. Rxd5 {[%emt 0:01:30]} Rc8 {[%emt 0:00:30]} 15. c3 {[%emt 0:01:30]} h6 {[%emt 0:06:30]} 16. Qh4 {[%emt 0:11:30]} Rg8 {[%emt 0:08:30]} 17. Be3 {[%emt 0:02:30]} Be7 {[%emt 0:04:30]} 18. Qh3 {[%emt 0:01:30]} Nf6 {[%emt 0:01:30]} 19. Rd3 {[%emt 0:01:30]} Nxe4 {[%emt 0:00:30]} 20. f4 {[%emt 0:00:30]} exf4 {[%emt 0:01:30]} 21. Qf5 $15 {[%emt 0:03:30]} fxe3 {[%emt 0:06:30]} 22. Qxe4 {[%emt 0:00:30]} Kf8 {[%emt 0:00:30]} 23. Be2 {[%emt 0:00:30]} Qc6 {[%emt 0:02:30]} 24. Qg4 {[%emt 0:01:30]} g6 {[%emt 0:04:30]} 25. Rf1 {[%emt 0:03:30]} Kg7 {[%emt 0:00:30]} 26. Qd4+ {[%emt 0:00:00]} f6 {[%emt 0:01:30]} 27. Rxe3 {[%emt 0:00:00]} Bd8 {[%emt 0:01:30]} 28. Bf3 {[%emt 0:12:12]} Qc5 {[%emt 0:18:07]} 29. Qxc5 {[%emt 0:02:19]} Rxc5 {[%emt 0:00:49]} 30. Bxb7 {[%emt 0:00:10]} f5 {[%emt 0:01:28]} 31. Re6 {[%emt 0:01:33]} Bc7 {[%emt 0:02:15]} 32. Rfe1 {[%emt 0:01:37]} a5 {[%emt 0:01:01]} 33. Re7+ {[%emt 0:00:41]} Kf6 {[%emt 0:00:13]} 34. h4 {[%emt 0:01:04]} f4 {[%emt 0:00:09]} 35. Rh7 {[%emt 0:05:01]} Rg7 {[%emt 0:05:49]} 36. Rxh6 {[%emt 0:00:07]} d5 {[%emt 0:00:00]} 37. h5 {[%emt 0:02:30]} f3 {[%emt 0:02:41]} 38. Rxg6+ {[%emt 0:00:10]} Rxg6 {[%emt 0:00:30]} 39. hxg6 {[%emt 0:00:05]} f2 {[%emt 0:00:00]} 40. Rd1 {[%emt 0:00:00]} Kxg6 {[%emt 0:00:00]} 41. Ba6 {[%emt 0:04:31]} Be5 {[%emt 0:05:58]} 42. Kd2 {[%emt 0:10:30]} d4 {[%emt 0:09:30]} 43. cxd4 {[%emt 0:09:20]} Bxd4 {[%emt 0:01:30]} 44. Rf1 {[%emt 0:02:51]} Rd5 {[%emt 0:06:26]} 45. b3 {[%emt 0:01:57]} Bc5+ {[%emt 0:04:39]} 46. Ke2 {[%emt 0:00:35]} Kg5 {[%emt 0:00:48]} 47. Kf3 {[%emt 0:05:46]} Re5 {[%emt 0:00:30]} 48. g3 {[%emt 0:01:51]} Re3+ {[%emt 0:03:19]} 49. Kg2 {[%emt 0:00:11]} Rc3 {[%emt 0:00:00]} 50. Bc4 {[%emt 0:00:24]} a4 {[%emt 0:00:32]} 51. Rd1 {[%emt 0:01:32]} Be3 {[%emt 0:04:09]} 52. Rd3 {[%emt 0:00:35]} Rxd3 {[%emt 0:00:48]} 53. Bxd3 {[%emt 0:00:30]} axb3 {[%emt 0:00:00]} 54. axb3 {[%emt 0:00:16]} Bc5 {[%emt 0:00:00]} 55. Be2 {[%emt 0:00:00]} 1/2-1/2

[Event "World Junior U20 Girls 2018"]
[Site "Gebze"]
[Date "2018.09.07"]
[Round "3"]
[White "Li, Xinyu"]
[Black "Mahalakshmi, M."]
[Result "1/2-1/2"]
[ECO "E16"]
[WhiteElo "2086"]
[BlackElo "2213"]
[Annotator "NA"]
[PlyCount "105"]
[EventDate "2018.09.05"]
[EventType "swiss"]
[EventCountry "TUR"]
[SourceTitle "playchess.com"]
[Source "ChessBase"]
[SourceQuality "1"]
[TimeControl "40/5400+30:1800+30"]

1. d4 {[%emt 0:00:30]} Nf6 {[%emt 0:00:30]} 2. c4 {[%emt 0:00:30]} e6 {[%emt 0:00:30]} 3. Nf3 {[%emt 0:00:30]} b6 {[%emt 0:00:00]} 4. g3 {[%emt 0:00:00]} Bb7 {[%emt 0:00:00]} 5. Bg2 {[%emt 0:00:00]} Bb4+ {[%emt 0:00:00]} 6. Bd2 {[%emt 0:00:00]} a5 {[%emt 0:00:00]} 7. O-O {[%emt 0:00:00] LiveBook: 747 Games} O-O {[%emt 0:00:30]} 8. Bf4 {[%emt 0:00:00]} Be7 {[%emt 0:00:30]} 9. Nc3 {[%emt 0:00:00]} Ne4 {[%emt 0:01:30]} 10. Qc2 {[%emt 0:02:30]} Nxc3 {[%emt 0:00:30]} 11. Qxc3 {[%emt 0:00:30]} d6 {[%emt 0:00:00] E16: Damenindisch (Hauptfortsetzung mit Lb4)} (11... Be4 12. Rfd1 f5 13. d5 Bf6 14. Be5 Qe8 15. Bxf6 Rxf6 16. Bf1 Na6 17. Ne1 f4 18. Nf3 Bxf3 19. exf3 {0-1 (33) Almasi,Z (2682)-Fedorchuk,S (2648) Riadh 2017}) 12. Rfd1 {[%emt 0:02:30]} Nd7 {[%emt 0:00:00]} 13. Qc2 {[%emt 0:11:30]} Ra7 $146 {[%emt 0:03:30]} ({Vorgänger:} 13... Nf6 14. d5 e5 15. Bd2 Nd7 16. e4 Nc5 17. Ne1 Bc8 18. Nd3 Bg5 19. f4 exf4 20. gxf4 {½-½ (34) Soudny,J (2564)-Noble,M (2497) ICCF email 2007}) 14. Ne1 {[%emt 0:05:30]} Bxg2 {[%emt 0:03:30]} 15. Nxg2 {[%emt 0:00:30]} Bf6 {[%emt 0:04:30]} 16. Be3 {[%emt 0:32:00]} Qe7 {[%emt 0:23:00]} 17. Rac1 {[%emt 0:01:30]} Rb8 {[%emt 0:10:30]} 18. b3 {[%emt 0:02:30]} c6 {[%emt 0:05:30]} 19. Rd2 {[%emt 0:13:30]} g6 {[%emt 0:11:30]} 20. h3 {[%emt 0:01:30]} Bg7 {[%emt 0:06:30]} 21. Qd3 {[%emt 0:08:30]} Re8 $11 {[%emt 0:06:30]} 22. Rcd1 {[%emt 0:02:30]} Raa8 {[%emt 0:04:30]} 23. Rc2 {[%emt 0:00:30]} Rec8 {[%emt 0:00:30]} 24. Qd2 {[%emt 0:00:30]} Qf8 {[%emt 0:00:30]} 25. Kh2 {[%emt 0:06:30]} d5 {[%emt 0:08:30]} 26. cxd5 {[%emt 0:00:30]} cxd5 {[%emt 0:00:30]} 27. Rdc1 {[%emt 0:00:30]} Nf6 {[%emt 0:00:30]} 28. Ne1 {[%emt 0:06:30]} Ne4 {[%emt 0:02:30]} 29. Qd3 {[%emt 0:00:30]} Qe8 {[%emt 0:01:30]} 30. Nf3 {[%emt 0:01:30]} Rxc2 {[%emt 0:02:30]} 31. Qxc2 {[%emt 0:00:30]} b5 {[%emt 0:00:51]} 32. Nd2 {[%emt 0:06:30]} Nxd2 {[%emt 0:02:58]} 33. Qxd2 {[%emt 0:00:00]} a4 {[%emt 0:00:10]} 34. Bf4 {[%emt 0:01:46]} h5 {[%emt 0:05:33]} 35. Bd6 {[%emt 0:03:04]} Qd8 {[%emt 0:03:09]} 36. Bf4 {[%emt 0:06:27]} axb3 {[%emt 0:01:51]} 37. axb3 {[%emt 0:00:02]} Qf6 {[%emt 0:01:20]} 38. e3 {[%emt 0:03:59]} h4 {[%emt 0:02:40]} 39. Kg2 {[%emt 0:02:54]} hxg3 {[%emt 0:01:17]} 40. Bxg3 {[%emt 0:00:00]} Qf5 {[%emt 0:00:00]} 41. Qc2 {[%emt 0:05:18]} b4 {[%emt 0:19:42]} 42. Qxf5 {[%emt 0:06:30]} gxf5 {[%emt 0:00:07]} 43. Rc7 {[%emt 0:01:30]} Ra3 {[%emt 0:01:40]} 44. Rc8+ {[%emt 0:05:11]} Kh7 {[%emt 0:00:16]} 45. Rb8 {[%emt 0:00:00]} Rxb3 {[%emt 0:00:41]} 46. Bd6 {[%emt 0:00:19]} Kg6 {[%emt 0:01:06]} 47. Rxb4 {[%emt 0:00:30]} Rxb4 {[%emt 0:00:35]} 48. Bxb4 {[%emt 0:00:00]} f4 {[%emt 0:00:19]} 49. Kf3 {[%emt 0:00:00]} fxe3 {[%emt 0:01:04]} 50. fxe3 {[%emt 0:00:30]} Kf5 {[%emt 0:00:59]} 51. Bd6 {[%emt 0:07:16]} Bf6 {[%emt 0:00:41]} 52. Bg3 {[%emt 0:00:12]} Kg5 {[%emt 0:00:00]} 53. Bf2 {[%emt 0:00:25]} 1/2-1/2